bitfinex/quotes_ETHUSD_20260202
["timestamp","ask_amount","ask_price","bid_price","bid_amount"]
[1770031767271,11.34299416,2287.1,2285.8,11.67612839]
[1770031767862,11.33979416,2286.9,2285.8,11.67612839]
[1770031768062,11.33979416,2286.9,2285.5,11.67712839]
[1770031768349,20.46137655,2286.6,2285.6,0.918]
[1770031768546,11.33979416,2286.6,2285.6,0.918]
[1770031770440,2.04613765,2286.8,2285.6,12.59412839]
[1770031770646,12.25779416,2286.9,2285.6,12.59412839]
[1770031771868,11.33979416,2286.9,2285.6,12.59412839]
[1770031772370,0.1056,2287.1,2285.8,11.67612839]
[1770031772579,0.0032,2287.1,2285.8,11.67612839]
[1770031772776,0.0032,2287.1,2286.0,11.67612839]
[1770031773955,0.0032,2287.1,2286.0,12.21227903]
[1770031774156,0.0032,2287.1,2286.2,11.67612839]
[1770031774456,0.0032,2287.1,2286.1,0.53615064]
[1770031774457,0.0032,2287.1,2286.4,11.67612839]
[1770031774644,0.0032,2287.1,2286.5,1.25941284]
[1770031775756,0.0011,2286.7,2286.5,1.25941284]
[1770031776467,0.0011,2286.9,2286.5,12.93554123]
[1770031776674,0.0032,2287.1,2286.5,12.93554123]
[1770031781762,0.0032,2287.1,2286.5,1.25941284]
[1770031782078,0.0032,2287.1,2286.3,0.918]
[1770031783057,12.58988318,2287.1,2286.3,0.918]
[1770031783259,12.58668318,2286.9,2285.6,0.917]
[1770031784184,12.58668318,2286.7,2285.6,0.917]
[1770031784381,12.58668318,2286.5,2285.6,0.917]
[1770031784978,12.68908318,2287.0,2285.6,0.917]
[1770031788076,12.68908318,2287.0,2285.6,13.65860076]
[1770031788259,12.68908318,2287.0,2285.8,12.74260076]
[1770031788589,11.83673884,2286.9,2285.8,12.74260076]
[1770031788783,1.19391388,2286.8,2285.9,1.27426008]
[1770031789286,1.19391388,2286.8,2285.9,13.24747266]
[1770031789785,1.19391388,2286.8,2286.0,0.00529308]
[1770031791061,11.83673884,2286.9,2286.0,0.00529308]
[1770031792660,0.0011,2286.9,2286.0,11.97850566]
[1770031793385,0.22880206,2286.8,2286.0,11.97850566]
[1770031794585,0.22880206,2286.8,2286.2,11.97321258]
[1770031797489,10.79449766,2287.6,2286.1,0.917]
[1770031797490,11.83563884,2287.3,2286.3,0.917]
[1770031797662,1.18356388,2287.2,2286.4,11.97321258]
[1770031797985,11.93803884,2287.5,2286.3,12.89021258]
[1770031798501,0.1024,2287.8,2286.3,12.89021258]
[1770031798796,11.83563884,2287.5,2286.4,13.26223384]
[1770031799008,11.83563884,2287.5,2286.3,0.917]
[1770031799167,11.83563884,2287.3,2286.3,0.917]
[1770031799796,11.83563884,2287.3,2286.3,12.89021258]
[1770031800264,11.83563884,2287.3,2286.3,0.917]
[1770031800462,11.83563884,2287.1,2286.0,12.89550566]
[1770031800686,0.1024,2287.1,2286.0,12.89550566]
[1770031800908,11.83563884,2287.0,2286.0,0.00529308]
[1770031803217,11.83563884,2286.8,2286.0,0.00529308]
[1770031803406,13.01920272,2286.7,2286.1,0.001]
[1770031805415,1.18356388,2286.7,2286.1,0.001]
[1770031805592,0.0011,2286.9,2286.1,11.97421258]
[1770031805916,0.0011,2286.9,2286.1,0.001]
[1770031806290,11.83673884,2286.9,2286.1,0.001]
[1770031806705,0.0011,2286.9,2286.1,0.001]
[1770031807213,11.83673884,2286.9,2286.1,0.001]
[1770031807402,13.02955272,2286.8,2286.1,0.001]
[1770031808332,13.02955272,2286.8,2285.8,0.001]
[1770031808333,13.03254217,2286.3,2285.2,0.0008]
[1770031808623,14.21235025,2286.0,2284.8,4.3134]
[1770031808788,2.56623304,2285.9,2284.9,13.03601899]
[1770031808984,0.1024,2286.1,2284.9,13.03601899]
[1770031809215,13.03254217,2286.1,2284.9,13.03601899]
[1770031812095,13.03254217,2286.1,2284.9,0.43134]
[1770031812297,13.03254217,2286.1,2284.8,4.3134]
[1770031813420,0.1024,2285.9,2284.9,12.60467899]
[1770031813796,1.17980808,2286.6,2284.9,12.60467899]
[1770031814004,14.07579461,2286.7,2285.1,12.60467899]
[1770031814301,12.93014217,2286.3,2285.1,12.60467899]
[1770031814502,12.93014217,2286.3,2284.8,4.3134]
[1770031814503,1.29301422,2286.2,2285.2,13.86514689]
[1770031814822,0.1024,2286.4,2285.2,13.86514689]
[1770031815196,13.03254217,2286.4,2285.2,13.86514689]
[1770031815598,0.1024,2286.8,2285.4,12.60467899]
[1770031815918,13.03254217,2286.8,2285.4,12.60467899]
[1770031816127,0.0011,2286.9,2285.4,12.60467899]
[1770031816345,13.84924217,2286.9,2285.6,12.60467899]
[1770031816824,13.84924217,2286.9,2285.5,1.2604679]
[1770031817806,12.93124217,2286.9,2285.5,1.2604679]
[1770031817996,13.03254217,2286.7,2285.5,13.86514689]
[1770031818196,13.03254217,2286.7,2285.6,12.60567899]
[1770031818494,1.39505422,2286.6,2285.6,12.60567899]
[1770031821526,0.0011,2286.9,2285.6,13.69947368]
[1770031821702,0.0011,2286.9,2285.8,12.60467899]
[1770031821898,0.0011,2286.9,2286.0,12.60467899]
[1770031822709,0.0011,2287.1,2286.1,12.60467899]
[1770031822904,0.0011,2287.1,2285.9,0.918]
[1770031822905,0.0011,2287.1,2286.3,12.60467899]
[1770031823648,0.0011,2287.1,2286.0,12.60467899]
[1770031825602,12.93124217,2287.1,2285.9,0.917]
[1770031825822,12.93124217,2287.1,2285.9,13.52167899]
[1770031826403,0.1035,2287.1,2285.9,13.52167899]
[1770031826621,13.03364217,2287.1,2286.0,1.3521679]
[1770031826823,13.03364217,2287.1,2286.0,13.95684689]
[1770031827038,0.1035,2287.1,2286.0,13.95684689]
[1770031828300,0.0011,2287.1,2286.0,13.95684689]
[1770031828729,12.93014217,2286.9,2286.0,1.3521679]
[1770031828928,12.93014217,2286.9,2285.6,0.001]
[1770031828929,12.93014217,2286.7,2285.6,0.001]
[1770031830406,12.93014217,2286.5,2285.6,0.001]
[1770031830605,12.93014217,2286.3,2285.6,0.001]
[1770031830926,12.93014217,2286.3,2285.4,0.001]
[1770031831126,12.93014217,2286.3,2285.5,0.001]
[1770031831844,5.49223542,2288.9,2287.1,12.60467899]
[1770031832014,5.49223542,2288.9,2287.2,12.83824929]
[1770031832015,0.94088771,2288.8,2287.2,12.83824929]
[1770031832339,9.87749766,2289.3,2288.0,3.89532226]
[1770031832659,9.87749766,2289.3,2288.1,4.8301996]
[1770031832660,14.83489194,2289.2,2288.1,4.8301996]
[1770031832812,14.83489194,2289.2,2287.6,5.48117322]
[1770031833120,12.93014217,2288.7,2287.6,5.48117322]
[1770031833306,2.47123896,2289.1,2287.3,12.60467899]
[1770031833509,7.80775861,2290.7,2289.0,1.86243258]
[1770031833734,7.80775861,2290.7,2289.0,0.917]
[1770031833735,6.89075861,2290.7,2289.0,0.917]
[1770031833935,10.33108753,2291.4,2289.0,14.95582094]
[1770031834148,1.03310875,2291.3,2289.4,12.60467899]
[1770031834318,0.45358987,2291.4,2289.6,12.83824929]
[1770031834510,13.38373204,2291.4,2289.6,14.03882094]
[1770031834711,13.38373204,2291.4,2289.7,1.43414195]
[1770031835040,0.917,2291.3,2289.7,1.43414195]
[1770031835222,0.45358987,2291.4,2289.8,14.23544392]
[1770031835422,1.31235031,2294.3,2291.5,12.60467899]
[1770031835744,2.16281959,2295.5,2291.5,12.60467899]
[1770031835745,0.23560553,2294.2,2292.5,0.2335703]
[1770031835921,0.00744446,2294.1,2292.5,2.43439523]
[1770031836129,0.00744446,2294.1,2292.0,0.2335703]
[1770031836447,9.66142955,2294.1,2292.1,0.917]
[1770031836611,9.65398509,2293.5,2291.4,12.60467899]
[1770031836815,13.21686217,2292.8,2290.4,12.60467899]
[1770031837035,0.1024,2291.8,2289.2,12.60467899]
[1770031837242,0.97563851,2291.8,2290.1,12.62660641]
[1770031837449,0.00744446,2291.7,2290.1,12.60467899]
[1770031837648,22.58412726,2292.5,2290.1,12.60467899]
[1770031837649,0.1024,2291.5,2290.1,12.60467899]
[1770031837948,0.1024,2291.7,2290.2,1.3521679]
[1770031838536,0.00744446,2291.6,2290.2,1.3521679]
[1770031838738,0.00744446,2291.6,2290.0,0.917]
[1770031839035,0.1024,2291.3,2289.3,1.52494339]
[1770031839223,0.1024,2291.2,2289.0,12.71492295]
[1770031839427,0.10984446,2291.2,2289.0,12.71492295]
[1770031839649,0.1024,2291.0,2289.0,12.71492295]
[1770031839838,0.00744446,2290.9,2289.1,1.2714923]
[1770031840177,0.00744446,2290.9,2288.6,0.917]
[1770031840355,12.43788226,2290.5,2288.6,0.917]
[1770031840539,0.00744446,2290.9,2288.1,12.71492295]
[1770031840742,0.1024,2290.7,2288.1,12.71492295]
[1770031841063,9.75638509,2290.7,2288.3,12.71492295]
[1770031841225,0.00744446,2290.6,2288.3,12.71492295]
[1770031841666,0.1024,2290.4,2288.3,12.71492295]
[1770031842157,0.1024,2290.4,2288.2,2.41578551]
[1770031842158,0.1024,2290.0,2288.2,1.32325773]
[1770031842463,0.1024,2290.0,2287.8,12.71492295]
[1770031842464,0.1024,2289.6,2287.0,12.71492295]
[1770031842644,3.970904,2289.7,2287.0,13.63092295]
[1770031842645,0.916,2289.5,2287.0,13.63092295]
[1770031842838,0.1024,2289.4,2287.1,14.18733107]
[1770031843037,0.1024,2289.4,2287.2,12.71492295]
[1770031843253,0.10984446,2289.4,2287.4,12.71492295]
[1770031843561,0.1024,2289.2,2287.4,12.71492295]
[1770031843746,0.00744446,2289.1,2287.5,1.2714923]
[1770031845057,0.00744446,2289.1,2287.6,12.71492295]
[1770031845260,0.00744446,2289.1,2287.5,1.2714923]
[1770031845560,0.00744446,2289.1,2287.2,12.94849325]
[1770031847966,0.00744446,2289.1,2287.5,0.2335703]
[1770031848265,0.1024,2289.0,2287.1,1.47240812]
[1770031848453,0.1024,2288.5,2286.4,12.25255769]
[1770031848656,0.1024,2288.3,2286.4,12.25255769]
[1770031848856,0.1024,2288.3,2286.5,14.5]
[1770031849378,0.00744446,2288.2,2286.5,14.5]
[1770031849606,0.00744446,2288.2,2286.6,2.67525577]
[1770031850081,0.00744446,2288.2,2286.6,14.92781346]
[1770031850279,0.00744446,2288.2,2286.6,12.25255769]
[1770031850640,0.00744446,2288.2,2286.7,26.75255769]
[1770031850846,0.00744446,2288.2,2286.8,12.25255769]
[1770031851053,0.00744446,2288.2,2286.9,12.48612799]
[1770031851308,0.00744446,2288.2,2287.0,14.41817049]
[1770031851591,2.11961866,2290.5,2287.0,14.41817049]
[1770031851592,5.404615,2289.5,2287.2,12.25255769]
[1770031851759,0.00744446,2289.5,2287.6,12.25255769]
[1770031852660,0.1024,2289.6,2287.6,12.25255769]
[1770031852861,0.00744446,2289.5,2287.7,1.22525577]
[1770031853072,0.00744446,2289.5,2287.7,15.72525577]
[1770031853256,0.1024,2289.4,2287.7,1.22525577]
[1770031853463,0.1024,2289.0,2287.1,12.25255769]
[1770031853957,0.00744446,2288.9,2287.3,12.25255769]
[1770031854365,0.00744446,2288.9,2287.5,12.25255769]
[1770031854694,0.00744446,2288.9,2287.6,14.39481346]
[1770031855154,0.00744446,2288.9,2287.8,12.25255769]
[1770031856991,0.1024,2289.9,2287.8,12.25255769]
[1770031857302,0.00744446,2289.8,2287.8,12.25255769]
[1770031857784,0.1024,2289.6,2287.8,12.25255769]
[1770031858088,0.1024,2289.6,2287.9,1.22525577]
[1770031858784,5.321121,2289.7,2287.9,1.22525577]
[1770031858988,5.321121,2289.7,2287.6,2.14225577]
[1770031858989,0.00744446,2289.7,2288.0,12.25255769]
[1770031859857,0.00744446,2289.7,2288.2,12.25255769]
[1770031860189,0.00744446,2289.7,2288.2,14.55308405]
[1770031860389,0.00744446,2289.7,2288.7,0.2335703]
[1770031860575,6.024973,2291.1,2289.0,12.25255769]
[1770031860775,3.355823,2291.0,2289.1,14.55308405]
[1770031860990,0.1024,2290.8,2289.2,1.45530841]
[1770031861186,0.1024,2290.8,2289.3,0.2335703]
[1770031861390,0.00744446,2290.7,2289.3,0.2335703]
[1770031861591,0.00744446,2290.7,2289.5,12.25255769]
[1770031861794,0.00744446,2290.7,2289.7,12.25255769]
[1770031862103,0.00744446,2290.7,2289.8,1.31695577]
[1770031862871,0.00744446,2290.7,2289.8,13.56951346]
[1770031863386,0.00744446,2290.7,2289.8,15.10822914]
[1770031863580,0.00744446,2290.7,2289.9,13.79127337]
[1770031863957,0.00744446,2290.7,2289.9,1.53871568]
[1770031864197,0.00744446,2290.7,2289.6,2.45571568]
[1770031864399,0.1024,2290.5,2289.1,1.53871568]
[1770031864656,0.1024,2290.5,2288.9,14.55308405]
[1770031864657,0.1024,2290.3,2288.9,1.53871568]
[1770031864776,12.9291333,2289.9,2287.9,14.55308405]
[1770031864961,0.1024,2289.8,2287.9,12.25255769]
[1770031865161,0.1024,2289.6,2287.7,15.46908405]
[1770031865385,0.1024,2289.7,2287.8,12.25255769]
[1770031865590,0.1024,2290.0,2287.9,12.25255769]
[1770031865860,0.1024,2289.8,2288.6,0.00581578]
[1770031866888,0.1024,2290.2,2288.6,0.00581578]
[1770031867168,1.66887566,2290.2,2288.6,0.00581578]
[1770031867700,14.49560896,2290.2,2288.6,0.00581578]
[1770031868888,0.0011,2290.0,2288.6,0.00581578]
[1770031869190,0.1024,2289.9,2288.3,2.30052636]
[1770031869393,11.86172029,2289.6,2288.0,2.30052636]
[1770031869566,11.96412029,2289.0,2287.3,2.30152636]
[1770031869783,9.68767118,2289.1,2287.3,0.001]
[1770031869784,11.96412029,2288.8,2287.3,0.001]
[1770031869989,11.96412029,2288.5,2287.0,0.001]
[1770031870388,0.1024,2288.0,2287.0,0.001]
[1770031870691,0.1024,2288.0,2286.4,2.30052636]
[1770031870886,1.0184,2288.0,2286.3,2.30052636]
[1770031871086,0.1024,2287.8,2286.4,0.23005264]
[1770031871393,0.1024,2287.8,2286.2,2.30052636]
[1770031871394,11.86172029,2287.2,2285.6,11.16280588]
[1770031871587,0.1024,2287.0,2285.4,0.001]
[1770031871894,0.1024,2286.7,2285.4,0.001]
[1770031873116,0.1024,2287.1,2285.5,12.17463254]
[1770031873795,0.1024,2287.1,2285.7,12.17363254]
[1770031874208,0.1024,2287.1,2285.8,12.17363254]
[1770031874409,0.1024,2287.1,2285.9,2.66736325]
[1770031874718,0.1024,2287.1,2285.9,2.66416325]
[1770031874897,0.1024,2287.1,2285.5,0.001]
[1770031875097,2.137904,2287.0,2285.5,0.001]
[1770031875420,0.1024,2287.1,2285.5,0.001]
[1770031875421,0.1024,2287.1,2285.6,12.40720284]
[1770031875735,11.86172029,2289.1,2286.5,12.17363254]
[1770031875895,5.949291,2289.4,2287.1,12.17363254]
[1770031876229,17.81101129,2289.4,2287.2,14.5]
[1770031876396,8.554631,2289.3,2287.2,14.5]
[1770031876597,3.20243,2289.1,2287.3,2.66736325]
[1770031877519,0.1024,2289.0,2287.3,2.66736325]
[1770031877898,11.75275,2289.1,2287.3,2.66736325]
[1770031878094,0.1024,2289.0,2287.3,2.66736325]
[1770031878297,2.167893,2288.9,2287.3,2.66736325]
[1770031878621,0.1024,2288.7,2287.4,1.71673633]
[1770031879190,0.1024,2288.7,2287.4,13.89036887]
[1770031879408,0.1024,2288.7,2287.4,12.17363254]
[1770031879604,0.1024,2289.2,2287.5,14.5]
[1770031879815,0.1024,2289.2,2287.5,26.67363254]
[1770031880023,0.1024,2289.2,2287.6,2.66736325]
[1770031880209,21.65179147,2289.4,2287.6,2.66736325]
[1770031880421,0.1024,2289.0,2287.3,0.917]
[1770031880818,0.1024,2289.0,2287.3,14.5]
[1770031881019,0.1024,2289.0,2287.3,15.417]
[1770031881234,0.1024,2289.0,2287.4,1.5417]
[1770031881414,0.1024,2289.0,2287.3,0.917]
[1770031881615,0.1024,2289.1,2287.3,0.917]
[1770031881830,8.953237,2289.0,2287.3,0.917]
[1770031882235,8.953237,2289.0,2287.1,26.67363254]
[1770031882552,8.953237,2289.0,2287.7,0.001]
[1770031882713,5.422692,2288.7,2287.7,0.001]
[1770031883512,4.669392,2288.7,2287.7,0.001]
[1770031884623,0.1024,2288.8,2287.7,0.001]
[1770031884949,0.1024,2288.9,2287.2,1.09302393]
[1770031885118,0.41544083,2289.5,2287.3,12.17363254]
[1770031885119,12.27716112,2289.5,2287.3,12.17363254]
[1770031885308,0.41544083,2289.5,2287.5,12.40720284]
[1770031885513,0.41544083,2289.5,2287.7,12.40720284]
[1770031885705,0.1024,2289.4,2287.8,14.5]
[1770031885921,0.41544083,2289.5,2288.0,12.17363254]
[1770031886128,0.41544083,2289.5,2288.1,13.39099579]
[1770031886431,0.1024,2289.4,2288.1,13.39099579]
[1770031887205,0.0011,2290.0,2288.3,12.17363254]
[1770031887442,0.0011,2290.0,2288.5,12.17363254]
[1770031888412,0.0011,2290.0,2288.5,13.09063254]
[1770031888646,0.0011,2290.0,2288.6,13.48269579]
[1770031890145,0.0043,2290.0,2288.6,13.48269579]
[1770031894217,0.0043,2290.0,2288.6,14.57505502]
[1770031894434,0.0043,2290.0,2288.6,13.48269579]
[1770031894757,0.0043,2290.0,2288.8,12.17363254]
[1770031894919,0.0043,2290.0,2289.0,12.17363254]
[1770031895444,0.0043,2290.0,2288.9,2.82151219]
[1770031895643,0.0043,2290.0,2288.6,13.48269579]
[1770031896622,0.0011,2289.8,2288.6,13.48269579]
[1770031899749,0.0011,2289.8,2288.8,12.02190394]
[1770031900845,0.0011,2289.8,2289.0,12.02190394]
[1770031901035,0.0011,2289.8,2289.1,12.93790394]
[1770031901242,0.0011,2289.8,2289.2,13.31569433]
[1770031902044,0.0011,2290.2,2289.3,12.02190394]
[1770031902821,0.0011,2291.0,2289.7,12.02190394]
[1770031903022,0.0011,2291.0,2289.8,0.916]
[1770031903633,0.0011,2291.0,2289.8,0.24574894]
[1770031903937,0.0011,2291.0,2289.6,0.916]
[1770031904453,12.83682967,2291.0,2289.6,0.866]
[1770031904759,12.83682967,2291.0,2289.6,12.88790394]
[1770031904760,0.0011,2291.0,2289.6,12.88790394]
[1770031905059,0.0011,2291.0,2289.8,12.02190394]
[1770031906852,0.0011,2291.0,2289.8,13.56339333]
[1770031907252,0.0011,2291.0,2289.7,2.98442872]
[1770031907456,0.0011,2291.0,2289.7,1.54148939]
[1770031908557,0.0011,2291.0,2289.8,13.61855273]
[1770031908734,0.0011,2291.0,2289.9,12.31063364]
[1770031908935,0.0011,2291.0,2289.9,12.07706334]
[1770031909139,0.0011,2291.0,2290.0,1.36185527]
[1770031910232,0.0011,2291.0,2289.6,0.866]
[1770031910233,12.48304519,2290.9,2289.5,1.54148939]
[1770031910839,0.1024,2290.9,2289.5,13.61855273]
[1770031911066,0.1024,2290.9,2289.3,2.30052636]
[1770031911067,0.0011,2290.8,2289.6,13.61855273]
[1770031912966,0.0011,2290.8,2289.6,1.54148939]
[1770031913259,0.1024,2290.7,2289.6,1.54148939]
[1770031913496,0.1024,2290.7,2289.7,1.54148939]
[1770031913834,0.0011,2290.8,2289.8,1.54148939]
[1770031914031,0.0011,2290.8,2289.9,1.54148939]
[1770031914450,0.0011,2290.8,2289.9,13.61855273]
[1770031914867,0.0011,2290.8,2289.9,1.54148939]
[1770031915045,0.0011,2290.8,2289.8,1.54148939]
[1770031916193,0.0011,2290.8,2289.7,2.30052636]
[1770031916399,0.0011,2290.8,2289.6,2.30052636]
[1770031916400,0.1024,2290.7,2289.6,2.30052636]
[1770031916544,1.35081452,2290.7,2289.6,2.530579]
[1770031916740,1.24841452,2290.7,2289.7,2.30052636]
[1770031916944,0.0011,2290.8,2289.7,14.3775897]
[1770031917167,0.0011,2290.8,2289.8,2.30052636]
[1770031917372,0.0011,2290.8,2289.7,2.30052636]
[1770031920260,0.1035,2290.8,2289.7,2.30052636]
[1770031920866,0.1035,2290.8,2289.7,14.3775897]
[1770031921160,12.38064519,2290.6,2289.6,2.30052636]
[1770031921369,17.310686,2290.7,2289.3,3.05641401]
[1770031921370,0.1024,2290.5,2289.3,2.30052636]
[1770031922561,0.1024,2290.5,2289.4,2.30052636]
[1770031922767,0.1024,2290.5,2289.3,2.30052636]
[1770031924601,0.1024,2290.5,2290.0,0.001]
[1770031925268,2.162288,2290.7,2290.0,0.001]
[1770031925601,0.0011,2290.8,2290.0,0.001]
[1770031925898,2.662097,2290.7,2290.0,0.001]
[1770031926098,0.1024,2290.5,2290.0,0.001]
[1770031927093,0.0011,2290.8,2290.0,0.001]
[1770031927299,2.727788,2290.7,2290.0,0.001]
[1770031927473,2.262788,2290.7,2290.0,0.001]
[1770031928516,0.0011,2290.8,2290.0,0.001]
[1770031928874,12.1327213,2290.8,2289.8,2.25252636]
[1770031929175,1.31567213,2290.7,2289.4,14.77667208]
[1770031929380,1.31567213,2290.7,2289.4,11.72025807]
[1770031930302,1.31567213,2290.7,2289.4,14.77667208]
[1770031930482,1.31567213,2290.7,2289.5,11.72025807]
[1770031930682,1.31567213,2290.7,2289.6,11.72025807]
[1770031930683,1.21327213,2290.7,2289.6,11.72025807]
[1770031930893,0.0011,2290.8,2289.7,13.19792528]
[1770031932077,0.1024,2290.7,2289.4,14.77667208]
[1770031932902,0.1024,2290.7,2289.5,11.72025807]
[1770031933099,12.2340213,2290.7,2289.2,12.63625807]
[1770031933297,12.2340213,2290.7,2289.2,11.72025807]
[1770031933514,0.1024,2290.5,2289.3,1.56926721]
[1770031934009,0.1024,2290.5,2289.3,13.28952528]
[1770031934520,0.1024,2290.5,2289.4,11.72025807]
[1770031935395,0.9171,2290.8,2289.4,11.72025807]
[1770031935396,0.0011,2290.8,2289.4,11.72025807]
[1770031935585,0.0011,2290.8,2289.5,13.1408106]
[1770031938729,12.1327213,2290.8,2289.5,1.42055253]
[1770031939029,12.1327213,2290.8,2289.7,0.001]
[1770031939188,0.0011,2290.6,2289.7,11.72125807]
[1770031939389,0.0011,2290.8,2289.8,12.63625807]
[1770031939590,0.0011,2290.8,2289.9,12.98398388]
[1770031941830,0.0011,2290.8,2289.9,1.21372581]
[1770031942017,0.0011,2290.8,2289.7,3.05741401]
[1770031942018,12.2340213,2290.7,2289.7,0.001]
[1770031942728,12.2340213,2290.5,2289.7,0.001]
[1770031942932,0.1024,2290.5,2289.7,0.001]
[1770031944119,0.1035,2290.8,2289.7,0.001]
[1770031944327,0.94319753,2290.7,2289.7,0.001]
[1770031944651,0.1024,2290.5,2289.7,0.001]
[1770031946232,21.0531043,2290.4,2289.0,3.05641401]
[1770031946435,0.1024,2290.4,2289.0,11.72025807]
[1770031946608,0.1024,2290.4,2289.2,11.72025807]
[1770031946910,0.1024,2290.4,2289.4,11.72025807]
[1770031947109,1.66233628,2290.8,2289.4,12.63625807]
[1770031947337,0.0011,2290.8,2289.5,11.72025807]
[1770031950133,12.1327213,2290.8,2289.5,11.72025807]
[1770031950318,0.1024,2290.7,2289.5,11.72025807]
[1770031951321,27.7025573,2290.6,2289.4,0.916]
[1770031951514,2.77025573,2290.5,2289.4,12.63625807]
[1770031951820,0.1024,2290.6,2289.4,12.63625807]
[1770031952016,12.1327213,2290.8,2289.4,12.63625807]
[1770031952249,12.1327213,2290.8,2289.1,3.05641401]
[1770031952250,12.2340213,2290.4,2289.1,3.05641401]
[1770031952411,1.0184,2290.4,2289.1,11.72025807]
[1770031952616,0.1024,2290.4,2289.7,0.001]
[1770031953509,0.1024,2290.5,2289.7,0.001]
[1770031953919,0.0011,2290.6,2289.7,11.72125807]
[1770031954220,0.0011,2290.6,2289.7,0.001]
[1770031955817,0.0011,2290.6,2289.7,11.72125807]
[1770031956018,0.0011,2290.6,2289.8,1.17212581]
[1770031957233,0.0011,2290.6,2289.8,12.89238388]
[1770031960444,0.0011,2290.6,2290.0,12.07500433]
[1770031961021,0.0011,2290.6,2289.7,0.001]
[1770031961219,0.0011,2290.6,2289.7,12.07600433]
[1770031961423,0.0011,2290.6,2289.7,0.001]
[1770031962036,0.1024,2290.5,2289.7,0.001]
[1770031962248,1.3494174,2290.5,2289.7,0.001]
[1770031963438,13.61369139,2290.5,2289.7,0.001]
[1770031964434,0.1024,2290.3,2289.5,0.001]
[1770031964629,1.0184,2290.3,2289.5,0.001]
[1770031964850,13.28267399,2290.3,2289.5,0.001]
[1770031965160,1.3282674,2290.2,2289.5,0.001]
[1770031965929,12.36667399,2290.1,2288.9,3.05641401]
[1770031966153,1.3282674,2290.2,2288.8,0.0008]
[1770031966154,12.36667399,2289.9,2288.8,0.0008]
[1770031969339,12.26103854,2290.1,2288.8,12.61329046]
[1770031969666,0.94154309,2290.0,2288.8,12.61329046]
[1770031969968,0.1024,2289.8,2288.8,12.61329046]
[1770031970138,0.916,2289.7,2288.8,12.61329046]
[1770031971361,0.916,2289.7,2288.8,0.0008]
[1770031971362,13.07463854,2289.7,2288.8,0.0008]
[1770031971674,1.31770385,2289.6,2288.8,0.0008]
[1770031971857,0.916,2289.7,2288.8,0.0008]
[1770031975050,0.916,2289.7,2288.8,12.61329046]
[1770031978147,13.48690594,2290.2,2288.8,12.61329046]
[1770031978372,0.1024,2290.1,2289.0,12.61249046]
[1770031978676,1.46133059,2290.1,2289.1,13.96533951]
[1770031978842,0.0011,2289.6,2289.1,13.96533951]
[1770031980641,0.9171,2290.4,2289.1,13.96533951]
[1770031980642,0.0011,2290.4,2289.2,12.61249046]
[1770031980840,0.1035,2290.4,2289.2,12.61249046]
[1770031981055,0.1024,2290.2,2289.2,12.61249046]
[1770031981274,0.1024,2290.2,2289.2,14.00912441]
[1770031982371,0.1035,2290.4,2289.2,14.00912441]
[1770031982560,12.26213854,2290.4,2289.2,14.00912441]
[1770031982765,0.1024,2290.3,2289.2,14.00912441]
[1770031983571,0.0011,2290.4,2289.2,14.00912441]
[1770031983770,0.0011,2290.4,2289.4,12.61249046]
[1770031992579,0.0011,2290.4,2289.6,0.001]
[1770031992782,0.0011,2290.4,2289.6,12.91932764]
[1770031992963,0.0011,2290.2,2289.6,12.91932764]
[1770031994170,0.0011,2290.2,2289.6,0.001]
[1770031995196,0.0011,2290.4,2289.8,12.91832764]
[1770031995368,0.0011,2290.4,2289.9,1.29183276]
[1770031995768,8.03267628,2290.4,2289.6,0.001]
[1770031996897,8.03157628,2290.1,2289.4,0.001]
[1770031997398,12.54802281,2290.3,2289.4,0.001]
[1770031997595,2.05806991,2290.2,2289.4,0.001]
[1770031997972,2.05806991,2290.2,2289.4,12.91932764]
[1770031998177,0.1024,2290.3,2289.4,12.91932764]
[1770031998392,12.65042281,2290.3,2289.4,0.001]
[1770032000699,13.56642281,2290.3,2289.4,0.001]
[1770032001401,1.0184,2290.3,2289.4,12.91932764]
[1770032002605,0.916,2290.3,2289.4,12.91932764]
[1770032002980,0.0011,2290.4,2289.4,14.3028604]
[1770032004490,0.0011,2290.4,2289.5,12.91832764]
[1770032004690,0.0011,2290.6,2289.5,12.91832764]
[1770032005304,11.42551107,2291.3,2289.8,12.91832764]
[1770032005305,8.03157628,2291.2,2289.8,12.91832764]
[1770032005601,9.36628183,2291.2,2290.0,12.91832764]
[1770032006984,1.33470555,2291.2,2290.0,12.91832764]
[1770032007296,8.03157628,2291.2,2290.0,12.91832764]
[1770032007610,12.54802281,2291.8,2290.5,12.91832764]
[1770032007905,8.03157628,2291.3,2290.5,12.91832764]
[1770032008109,20.57959909,2291.3,2290.3,0.916]
[1770032008402,0.0011,2290.4,2290.3,1.4207141]
[1770032008603,0.80315763,2291.2,2290.3,0.916]
[1770032008980,12.54802281,2291.1,2290.1,4.13114104]
[1770032009602,12.54802281,2290.9,2290.1,4.13114104]
[1770032011590,12.65042281,2291.1,2290.1,4.13114104]
[1770032012284,15.11786981,2291.0,2290.1,4.13114104]
[1770032012480,14.07004979,2290.9,2290.1,4.13114104]
[1770032014107,12.54802281,2290.7,2289.6,0.001]
[1770032014412,12.54802281,2290.5,2289.6,0.001]
[1770032014615,12.54802281,2290.1,2289.4,0.001]
[1770032014810,10.12522929,2290.4,2289.3,3.30533513]
[1770032014811,12.54802281,2289.9,2289.3,3.30533513]
[1770032016104,12.54802281,2289.9,2289.0,0.001]
[1770032017105,14.76723942,2289.8,2288.5,0.001]
[1770032017317,12.65042281,2289.6,2288.5,0.001]
[1770032017518,0.1024,2289.4,2288.5,0.001]
[1770032018102,0.916,2289.4,2288.5,0.001]
[1770032019515,1.25480228,2290.0,2288.5,12.8295011]
[1770032019920,1.25480228,2290.0,2288.8,12.8285011]
[1770032020122,1.17551107,2290.5,2288.8,13.7445011]
[1770032020123,0.916,2290.3,2288.8,13.7445011]
[1770032020320,0.0011,2289.7,2288.8,13.7445011]
[1770032020826,0.0011,2289.7,2289.0,12.8285011]
[1770032021136,0.0011,2289.7,2289.1,15.56135121]
[1770032021498,0.0011,2289.7,2289.1,12.8285011]
[1770032023542,0.1024,2290.7,2289.1,0.2335703]
[1770032023834,0.1024,2290.8,2289.2,12.8285011]
[1770032024039,11.87162175,2290.7,2289.2,12.8285011]